bitfinex/quotes_ETHUSD_20250318
["timestamp","ask_amount","ask_price","bid_price","bid_amount"]
[1742264987956,3.0,1916.6,1916.3,5.21827]
[1742264988154,3.0,1916.6,1916.4,5.21803]
[1742264988355,3.0,1916.6,1916.4,10.43598]
[1742264988732,3.7571,1916.6,1916.4,5.21795]
[1742264989073,3.0,1916.6,1916.5,5.21784]
[1742264989938,3.0,1916.6,1916.4,5.21795]
[1742264990246,3.0,1916.6,1916.4,10.43593]
[1742264990559,3.0,1916.6,1916.4,5.21795]
[1742264993468,3.0,1916.6,1916.3,10.43661]
[1742264993763,3.0,1916.6,1916.4,5.21809]
[1742264993968,3.0,1916.6,1916.4,10.43609]
[1742264994669,3.0,1916.6,1916.4,5.218]
[1742264994860,3.0,1916.6,1916.4,10.43599]
[1742264995368,3.0,1916.6,1916.4,5.21799]
[1742264996768,7.6317639,1916.6,1916.3,6.344851]
[1742264996972,7.6317639,1916.6,1916.3,11.563101]
[1742264997168,0.8121,1916.5,1916.3,5.21825]
[1742264997870,12.8494439,1916.6,1916.3,5.21825]
[1742264998072,7.6317639,1916.6,1916.3,5.21825]
[1742264998279,12.8493439,1916.6,1916.3,5.21825]
[1742265000581,8.21758,1916.6,1916.3,5.21825]
[1742265000747,3.0,1916.6,1916.4,5.21811]
[1742265001076,3.0,1916.6,1916.5,5.21784]
[1742265001468,3.0,1916.6,1916.2,5.21855]
[1742265001469,0.7739,1916.5,1916.2,5.21855]
[1742265001679,5.99175,1916.5,1916.2,5.21855]
[1742265001847,4.6317639,1916.4,1916.2,5.21865]
[1742265002389,0.7739,1916.7,1916.3,4.6317639]
[1742265002587,3.0,1916.7,1916.4,5.97278]
[1742265002739,4.6317639,1916.6,1916.4,5.21798]
[1742265002937,3.0,1916.7,1916.4,5.21796]
[1742265003241,3.0,1916.7,1916.4,5.739756]
[1742265003441,8.21733,1916.7,1916.3,5.21837]
[1742265003684,5.4169639,1916.6,1916.3,5.21823]
[1742265004568,5.4169639,1916.6,1916.4,5.21803]
[1742265004891,5.4169639,1916.6,1916.3,5.21823]
[1742265005585,10.6345339,1916.6,1916.3,5.21823]
[1742265006003,5.4169639,1916.6,1916.3,5.21823]
[1742265006155,5.4169639,1916.6,1916.3,10.4364]
[1742265006355,5.4169639,1916.6,1916.4,5.21798]
[1742265006356,0.7852,1916.6,1916.4,5.21798]
[1742265007367,0.7852,1916.6,1916.4,5.21796]
[1742265008792,0.7852,1916.6,1916.3,12.0850646]
[1742265009162,0.7852,1916.6,1916.3,6.8667246]
[1742265009690,0.7852,1916.6,1916.4,5.21808]
[1742265009902,0.7852,1916.6,1916.4,5.21802]
[1742265010199,0.7852,1916.6,1916.3,5.21834]
[1742265010758,10.6345939,1916.6,1916.3,5.21834]
[1742265012999,5.4169639,1916.6,1916.3,5.21823]
[1742265013206,5.4169639,1916.6,1916.4,5.21799]
[1742265014177,5.4169639,1916.6,1916.4,10.43601]
[1742265014512,6.02,1917.0,1916.4,10.43601]
[1742265014513,0.815,1917.2,1916.9,5.21664]
[1742265014707,4.6317639,1917.1,1917.0,5.21638]
[1742265014876,4.6317639,1917.1,1916.9,5.21671]
[1742265016593,6.03094,1917.2,1916.9,5.21671]
[1742265016782,4.6317639,1917.1,1916.9,5.21671]
[1742265017704,4.6317639,1917.1,1916.8,5.21692]
[1742265019002,4.6317639,1917.1,1916.8,5.21687]
[1742265020805,9.8480039,1917.1,1916.7,5.21719]
[1742265021308,0.8309,1916.8,1916.5,5.21766]
[1742265021503,4.6317639,1916.7,1916.5,5.21766]
[1742265021715,4.6317639,1916.7,1916.5,10.43538]
[1742265022410,0.8309,1916.8,1916.5,10.43538]
[1742265023807,4.6317639,1916.9,1916.6,10.43485]
[1742265023988,4.6317639,1916.9,1916.6,6.260855]
[1742265024490,15.6557639,1917.1,1916.9,5.21675]
[1742265024687,9.6357639,1917.1,1916.9,5.21675]
[1742265025279,9.6357639,1917.1,1916.9,10.43342]
[1742265025480,9.6357639,1917.1,1916.9,5.21667]
[1742265025705,9.6357639,1917.1,1916.8,11.19566]
[1742265026307,9.6357639,1917.1,1916.9,5.21674]
[1742265026882,4.6317639,1917.1,1916.9,10.4334]
[1742265027216,5.4326639,1917.3,1917.0,5.21648]
[1742265030618,5.4326639,1917.3,1917.0,5.2164]
[1742265032912,11.23444,1917.8,1917.4,5.21539]
[1742265033081,10.4269639,1917.7,1917.2,5.21583]
[1742265033290,4.6317639,1917.5,1917.2,10.43162]
[1742265034286,4.6317639,1917.5,1917.2,5.21579]
[1742265034807,4.6317639,1917.5,1917.2,10.43159]
[1742265035615,0.7922,1917.4,1917.0,6.02944]
[1742265035818,4.6317639,1917.3,1917.0,5.21634]
[1742265036031,4.6317639,1917.3,1917.0,5.737974]
[1742265036802,4.6317639,1917.3,1917.1,5.21619]
[1742265037204,4.6317639,1917.3,1917.0,10.954374]
[1742265037416,4.6317639,1917.3,1917.1,5.2162]
[1742265038280,4.6317639,1917.3,1917.1,10.43228]
[1742265038483,4.6317639,1917.3,1917.1,5.21608]
[1742265039124,4.6317639,1917.3,1917.0,5.738004]
[1742265039284,4.6317639,1917.3,1917.0,10.954364]
[1742265040616,4.6317639,1917.3,1917.1,5.21619]
[1742265042617,4.6317639,1917.3,1916.9,5.21669]
[1742265042818,4.6317639,1917.0,1916.8,5.21701]
[1742265042997,5.21604,1917.2,1916.9,10.43323]
[1742265042998,4.6317639,1917.2,1916.9,10.43323]
[1742265043193,9.8477139,1917.2,1916.8,5.21702]
[1742265043406,9.8477139,1917.2,1916.8,10.4339]
[1742265043707,11.43151729,1917.2,1916.8,10.4339]
[1742265044802,11.43151729,1917.2,1916.8,10.43378]
[1742265045100,11.43151729,1917.2,1916.9,5.21673]
[1742265045818,12.45802155,1917.2,1916.9,5.21673]
[1742265046004,7.24207155,1917.2,1916.9,5.21662]
[1742265046212,1.02650426,1917.2,1916.9,5.21662]
[1742265046517,6.02,1917.4,1917.2,5.21593]
[1742265046711,10.4357639,1917.5,1917.2,5.21593]
[1742265047396,1.03984104,1917.4,1917.1,5.2161]
[1742265047584,1.03984104,1917.4,1917.1,5.21608]
[1742265048826,15.6509839,1917.5,1917.2,5.21593]
[1742265049345,10.4357639,1917.5,1917.2,5.21583]
[1742265049529,5.804,1917.5,1917.2,5.21583]
[1742265049691,10.4357639,1917.5,1917.2,5.21583]
[1742265050023,5.4337639,1917.5,1917.2,5.21583]
[1742265051005,10.6489439,1917.5,1917.2,5.21583]
[1742265052395,0.802,1917.5,1917.0,5.99987]
[1742265052597,8.98771,1917.7,1917.1,0.599987]
[1742265052808,18.8342239,1917.7,1917.3,6.01557]
[1742265053209,13.6194739,1917.7,1917.3,6.01557]
[1742265054424,18.8342239,1917.7,1917.3,6.01557]
[1742265054628,4.6317639,1917.5,1917.3,5.21547]
[1742265056254,8.98771,1917.7,1917.3,5.21547]
[1742265056404,4.6317639,1917.6,1917.3,5.21547]
[1742265060121,8.98771,1917.7,1917.3,5.21547]
[1742265060444,4.6317639,1917.6,1917.3,5.21547]
[1742265061125,4.6317639,1917.6,1917.2,5.21588]
[1742265061126,3.0,1917.5,1917.2,5.21588]
[1742265061441,3.0,1917.5,1917.3,5.21553]
[1742265061639,4.6317639,1917.4,1917.1,0.8001]
[1742265061806,4.6317639,1917.4,1917.1,11.23229]
[1742265062006,4.6317639,1917.4,1917.2,5.21592]
[1742265062209,0.7903,1917.5,1917.2,5.21592]
[1742265062437,3.7903,1917.7,1917.1,0.8001]
[1742265062646,4.6317639,1917.6,1917.3,5.21553]
[1742265063139,10.17378656,1917.7,1917.3,5.21553]
[1742265063140,13.6367639,1917.7,1917.3,5.2155]
[1742265063832,13.6367639,1917.7,1917.4,5.21538]
[1742265065018,0.7808,1917.9,1917.4,1.815288]
[1742265065222,5.21271,1918.4,1917.9,5.21388]
[1742265065421,10.6748039,1918.3,1917.9,5.21383]
[1742265065745,3.0,1918.2,1917.9,5.21383]
[1742265066041,0.83,1918.3,1917.9,5.21383]
[1742265066242,0.83,1918.3,1918.0,5.21351]
[1742265066620,0.83,1918.5,1918.2,5.21312]
[1742265066932,3.0,1918.4,1918.1,6.04375]
[1742265067114,7.6317639,1918.4,1918.1,6.04375]
[1742265067309,0.83,1918.5,1918.2,5.21312]
[1742265067514,10.6737939,1918.7,1918.2,6.338747]
[1742265067708,4.6317639,1918.6,1918.3,5.21277]
[1742265067940,3.0,1918.6,1918.3,5.21277]
[1742265068548,10.6737939,1918.7,1918.3,5.21277]
[1742265068748,5.4617639,1918.7,1918.3,5.21277]
[1742265068924,3.0,1918.6,1918.4,5.21266]
[1742265069122,3.0,1918.6,1918.4,5.97906]
[1742265069385,11.20481,1919.1,1918.7,0.7664]
[1742265069522,9.8431539,1918.9,1918.5,0.7664]
[1742265069709,10.4235,1918.8,1918.5,0.7664]
[1742265070044,10.6267239,1918.7,1918.3,5.97927]
[1742265070248,0.783,1918.7,1918.3,7.098467]
[1742265070414,5.995,1918.7,1918.3,7.098467]
[1742265070847,5.995,1918.7,1918.3,12.311217]
[1742265071146,5.995,1918.7,1918.3,12.311237]
[1742265071333,0.783,1918.7,1918.3,12.311237]
[1742265071537,9.8434239,1918.8,1918.4,6.4437837]
[1742265071724,9.8434239,1918.8,1918.4,1.2311237]
[1742265071725,4.6317639,1918.8,1918.4,1.2311237]
[1742265071926,15.0552539,1918.8,1918.4,5.21256]
[1742265072128,9.8434639,1918.8,1918.4,5.21256]
[1742265072327,9.8434639,1918.8,1918.3,5.97927]
[1742265072527,5.21203,1918.7,1918.3,5.97927]
[1742265072860,5.21215,1918.6,1918.2,10.42628]
[1742265073030,5.21215,1918.6,1918.3,1.042628]
[1742265073234,5.21215,1918.6,1917.9,1.356213]
[1742265073235,4.6317639,1918.4,1917.9,1.356213]
[1742265073544,5.21322,1918.2,1917.9,0.7518]
[1742265073735,11.22795,1918.2,1917.8,5.21422]
[1742265073924,6.01452,1918.2,1917.8,5.21422]
[1742265074370,0.8013,1918.2,1917.7,5.9662]
[1742265074538,6.01465,1918.2,1917.8,5.21428]
[1742265074943,6.01465,1918.2,1917.8,10.42846]
[1742265075142,5.21368,1918.1,1917.7,7.06279]
[1742265075351,10.42736,1918.1,1917.7,5.21457]
[1742265075546,5.21378,1918.0,1917.6,10.42948]
[1742265075733,15.0595039,1918.0,1917.6,5.21464]
[1742265075941,15.0595039,1918.0,1917.5,6.00431]
[1742265075942,10.42846,1917.9,1917.5,6.00431]
[1742265076160,5.21435,1917.8,1917.5,0.7892]
[1742265077029,5.21468,1917.7,1917.3,11.00278]
[1742265077230,5.21468,1917.7,1917.3,9.10370339]
[1742265077460,5.21506,1917.6,1917.1,6.00524]
[1742265077655,5.21512,1917.5,1917.1,6.00524]
[1742265077829,5.4379639,1917.6,1917.1,6.0052]
[1742265078165,10.6529739,1917.6,1917.2,5.21592]
[1742265078530,15.8680239,1917.6,1917.2,5.21592]
[1742265078850,5.21515,1917.5,1917.1,11.22122]
[1742265079163,5.21515,1917.5,1917.1,6.0052]
[1742265079535,5.21515,1917.5,1917.2,5.21593]
[1742265079738,15.8679339,1917.6,1917.2,5.21593]
[1742265081366,3.8062,1917.6,1917.3,5.21562]
[1742265081571,9.02115,1917.6,1917.2,5.21585]
[1742265081866,0.7693,1918.0,1917.7,5.21446]
[1742265082037,3.0,1918.0,1917.8,5.2143]
[1742265082365,4.999,1918.3,1918.0,5.21351]
[1742265082539,10.21206,1918.3,1917.9,5.21394]
[1742265082863,5.21338,1918.2,1917.8,5.21412]
[1742265083068,5.2136,1918.1,1917.9,0.521412]
[1742265083375,9.8451439,1918.2,1917.9,5.21401]
[1742265084177,9.8451439,1918.2,1917.8,5.2142]
[1742265085175,5.96993,1918.1,1917.7,5.21453]
[1742265085336,9.8456639,1918.0,1917.6,5.2148]
[1742265085531,9.8456639,1918.0,1917.7,5.2145]
[1742265086146,4.6317639,1918.0,1917.6,1.121538]
[1742265086342,8.21386,1918.0,1917.6,6.336278]
[1742265086550,3.0,1918.0,1917.6,6.336258]
[1742265086749,8.21385,1918.0,1917.6,6.336258]
[1742265087154,8.21385,1918.0,1917.7,5.21445]
[1742265088181,3.0,1918.0,1917.7,10.42893]
[1742265088391,3.0,1918.0,1917.7,5.21445]
[1742265088541,13.4277,1918.0,1917.6,6.336308]
[1742265088877,13.42775,1918.0,1917.6,5.21477]
[1742265089185,5.21412,1917.9,1917.6,5.21477]
[1742265089982,13.42769,1918.0,1917.6,5.21468]
[1742265090179,5.21407,1917.9,1917.6,5.21468]
[1742265090393,10.6772539,1917.7,1917.3,5.96895]
[1742265091144,10.6772539,1917.7,1917.3,6.82861512]
[1742265091345,5.21435,1917.8,1917.4,5.21538]
[1742265091549,5.21435,1917.8,1917.4,5.21528]
[1742265091773,5.21435,1917.8,1917.4,10.43051]
[1742265092172,5.21435,1917.8,1917.5,5.21509]
[1742265092563,5.21435,1917.8,1917.4,5.21523]
[1742265092876,5.21435,1917.8,1917.4,1.20438251]
[1742265092877,3.0,1917.8,1917.4,1.20438251]
[1742265093044,4.998,1917.9,1917.7,10.42901]
[1742265093245,4.998,1917.9,1917.7,5.21444]
[1742265094142,6.02,1918.2,1917.9,5.2138]
[1742265094342,10.6756239,1918.3,1917.9,5.73518]
[1742265095451,5.21358,1918.1,1917.8,5.21426]
[1742265095871,5.21379,1918.0,1917.7,5.21447]
[1742265096077,5.21379,1918.0,1917.6,5.96801]
[1742265096243,3.0,1917.9,1917.6,5.96799]
[1742265096443,8.21407,1917.9,1917.6,5.96799]
[1742265097173,8.21407,1917.9,1917.6,5.21469]
[1742265098073,13.42823,1917.9,1917.5,10.43007]
[1742265098274,8.21407,1917.9,1917.6,5.21481]
[1742265098487,13.42828,1917.9,1917.5,10.42997]
[1742265098680,5.21442,1917.8,1917.4,11.02839]
[1742265098854,9.8464839,1917.7,1917.3,5.21561]
[1742265099047,10.6175839,1917.7,1917.3,10.43113]
[1742265099247,15.8323339,1917.7,1917.3,10.43113]
[1742265099478,15.8323339,1917.7,1917.3,5.21552]
[1742265099678,5.21499,1917.6,1917.3,5.21552]
[1742265100283,15.8323739,1917.7,1917.3,5.21543]
[1742265101961,5.21499,1917.6,1917.3,5.21543]
[1742265102165,5.21499,1917.6,1917.2,11.25209]
[1742265102360,9.8468939,1917.5,1917.1,5.2161]
[1742265102561,5.99783,1917.4,1917.0,11.03483]
[1742265102763,11.21341,1917.4,1917.0,11.03483]
[1742265103282,5.99783,1917.4,1917.0,16.25121]
[1742265103460,9.8474939,1917.3,1917.0,4.998]
[1742265103658,5.21606,1917.2,1916.8,6.02318]
[1742265103865,5.21624,1917.1,1916.8,6.02305]
[1742265104453,10.43266,1917.1,1916.8,0.8062]
[1742265104756,5.21624,1917.1,1916.7,5.21721]
[1742265104984,9.8480039,1917.1,1916.7,10.43431]
[1742265105191,9.8480039,1917.1,1916.7,10.4343]
[1742265105582,9.8480039,1917.1,1916.7,5.2171]
[1742265105984,6.04471,1917.0,1916.6,6.03704]
[1742265106697,6.04471,1917.0,1916.6,6.03695]
[1742265106868,0.8281,1917.0,1916.7,5.21722]
[1742265107281,11.35443029,1917.1,1916.7,5.21722]
[1742265107482,9.8480339,1917.1,1916.8,5.217]
[1742265107988,9.8480339,1917.1,1916.8,5.21699]
[1742265107989,4.6317639,1917.1,1916.8,5.21699]
[1742265109285,9.8479839,1917.1,1916.8,5.21699]
[1742265110201,15.0643839,1917.1,1916.7,5.21727]
[1742265110655,5.21652,1917.0,1916.7,5.21727]
[1742265111062,6.72297039,1917.0,1916.6,5.21754]
[1742265111257,10.6611239,1916.9,1916.5,5.2176]
[1742265111465,4.6317639,1916.7,1916.4,11.21032]
[1742265111778,4.6317639,1916.7,1916.4,5.99235]
[1742265112094,4.6317639,1916.7,1916.5,5.21783]
[1742265112995,10.83401429,1916.7,1916.4,5.21785]
[1742265113191,10.83401429,1916.7,1916.3,5.21835]
[1742265113563,4.6317639,1916.5,1916.3,5.21835]
[1742265113764,5.3916639,1916.5,1916.2,6.01158]
[1742265113999,11.63601429,1916.7,1916.3,5.21818]
[1742265114565,6.38118143,1916.6,1916.2,10.4371]
[1742265114869,5.21758,1916.6,1916.2,10.4371]
[1742265115389,4.6317639,1916.5,1916.2,5.21848]
[1742265115776,5.21758,1916.6,1916.2,5.21848]
[1742265116766,5.21758,1916.6,1916.3,5.21836]
[1742265118124,1.50645039,1917.0,1916.4,0.05218052]
[1742265118317,8.21703,1916.8,1916.5,5.21784]
[1742265118676,9.8492239,1916.7,1916.3,10.43652]
[1742265118996,9.8492239,1916.7,1916.4,5.21809]
[1742265119373,5.21768,1916.6,1916.3,5.21826]
[1742265119571,6.03638,1916.6,1916.3,5.21826]
[1742265120106,0.8187,1916.6,1916.3,10.4365]
[1742265120410,3.0,1916.8,1916.5,5.21771]
[1742265120706,4.6317639,1916.7,1916.4,5.21811]
[1742265121079,0.7899,1916.6,1916.4,5.21811]
[1742265121609,0.7899,1916.6,1916.4,5.21797]
[1742265121779,4.6317639,1916.7,1916.4,5.21797]
[1742265121976,4.6317639,1916.7,1916.4,10.4359]
[1742265122279,4.6317639,1916.7,1916.5,5.21782]
[1742265122471,4.6317639,1916.7,1916.4,5.21793]
[1742265123314,9.8490639,1916.7,1916.3,5.21838]
[1742265123490,9.8490639,1916.7,1916.3,5.21823]
[1742265124032,15.0665339,1916.7,1916.3,5.21823]
[1742265124235,5.21759,1916.6,1916.3,5.21823]
[1742265125301,0.7992,1916.5,1916.2,10.43706]
[1742265125487,0.7992,1916.5,1916.3,5.21838]
[1742265126279,4.6317639,1916.7,1916.1,5.7552]
[1742265126498,4.6317639,1916.7,1916.5,5.21774]
[1742265127019,9.01633,1916.8,1916.5,5.21774]
[1742265127177,11.40282339,1916.8,1916.5,5.21782]
[1742265127377,16.62007339,1916.8,1916.4,5.218]
[1742265127577,9.8491739,1916.7,1916.3,10.43656]
[1742265127879,9.8491739,1916.7,1916.4,5.21811]
[1742265128504,15.0666639,1916.7,1916.3,5.2182]
[1742265128708,5.21769,1916.6,1916.3,5.2182]
[1742265128910,5.21766,1916.6,1916.3,5.2182]
[1742265130020,11.97440963,1916.7,1916.4,5.21811]
[1742265130222,11.97440963,1916.7,1916.3,5.2182]
[1742265130380,11.97440963,1916.7,1916.4,5.2181]
[1742265130884,0.7992,1916.8,1916.4,0.7623]
[1742265131089,3.0,1916.9,1916.6,5.21742]
[1742265131282,3.0,1916.9,1916.6,10.43486]
[1742265131490,3.0,1916.9,1916.7,5.21721]
[1742265131693,3.0,1916.9,1916.7,10.43431]
[1742265132013,3.7566,1917.0,1916.8,5.21702]
[1742265132400,0.7566,1917.0,1916.8,5.21702]
[1742265132600,5.97308,1917.0,1916.6,5.21755]
[1742265132913,9.8486139,1916.9,1916.6,5.21755]
[1742265133279,5.97308,1917.0,1916.6,5.21748]
[1742265133480,3.7566,1917.0,1916.7,5.21715]
[1742265133880,8.97318,1917.0,1916.7,5.21715]
[1742265134099,10.85529739,1917.0,1916.7,5.21715]
[1742265134612,10.85529739,1917.0,1916.5,5.0]
[1742265134828,9.8486639,1916.9,1916.5,10.43546]
[1742265135127,9.8486639,1916.9,1916.5,5.21772]
[1742265135330,9.8486439,1916.9,1916.5,5.21772]
[1742265135530,15.0656339,1916.9,1916.5,5.21772]
[1742265135884,6.03375,1916.8,1916.5,5.21772]
[1742265136509,0.8167,1916.8,1916.5,10.43548]
[1742265136694,0.8167,1916.8,1916.6,5.21756]
[1742265137335,0.8167,1916.8,1916.5,5.21772]
[1742265139948,6.03385,1916.8,1916.4,5.21797]
[1742265140111,0.8167,1916.8,1916.5,5.21771]
[1742265140312,0.8167,1916.8,1916.6,5.21757]
[1742265141140,8.21654,1917.0,1916.6,5.21745]
[1742265141141,3.799,1917.0,1916.6,5.21745]
[1742265141319,9.0155,1917.0,1916.7,5.21728]
[1742265141725,3.799,1917.0,1916.7,5.21728]
[1742265142237,9.01549,1917.0,1916.6,5.21746]
[1742265142549,10.98221539,1917.0,1916.6,5.21746]
[1742265142736,10.98221539,1917.0,1916.6,10.43489]
[1742265143347,16.19895539,1917.0,1916.6,5.21743]
[1742265143850,5.21684,1916.9,1916.5,11.24998]
[1742265144350,5.21705,1916.8,1916.4,5.21806]
[1742265144558,1.311405,1916.7,1916.4,10.43607]
[1742265144760,0.7897,1916.7,1916.4,10.43607]
[1742265145071,0.7897,1916.7,1916.4,5.21798]
[1742265145240,0.7897,1916.7,1916.4,10.43595]
[1742265145442,0.7897,1916.7,1916.4,5.21797]
[1742265145761,0.7897,1916.7,1916.3,6.77137917]
[1742265145762,11.22455,1916.7,1916.3,6.77137917]
[1742265145952,7.129465,1916.7,1916.3,6.77125917]
[1742265146152,7.129465,1916.7,1916.4,5.21807]
[1742265146355,12.347005,1916.7,1916.3,5.99584]
[1742265146548,12.347005,1916.7,1916.3,5.21824]
[1742265146754,5.21768,1916.6,1916.2,5.21851]
[1742265146941,0.8142,1916.4,1916.1,5.21879]
[1742265147266,0.8142,1916.4,1916.2,5.21853]
[1742265148176,0.8142,1916.4,1916.2,10.43702]
[1742265148344,0.8142,1916.6,1916.3,5.2182]
[1742265148544,6.03179,1916.6,1916.3,5.2182]
[1742265148862,5.21819,1916.4,1916.1,5.21891]
[1742265149065,0.8142,1916.3,1916.0,10.43828]
[1742265149255,0.8142,1916.3,1916.1,0.38764942]
[1742265149681,10.6644939,1916.3,1916.1,0.38764942]
[1742265149979,5.21866,1916.2,1916.1,0.38764942]
[1742265150145,6.80697539,1916.2,1916.1,0.38764942]
[1742265150668,10.57707539,1916.2,1916.1,0.38764942]
[1742265151068,15.79593539,1916.2,1915.8,5.21972]
[1742265151269,15.79593539,1916.2,1915.7,4.999]
[1742265151270,3.7701,1916.2,1915.7,4.999]
[1742265151469,3.7701,1916.2,1915.9,10.43861]
[1742265151658,3.7701,1916.2,1915.9,5.21927]
[1742265151865,3.7701,1916.2,1915.9,10.43862]
[1742265152476,0.7701,1916.2,1915.9,10.43865]
[1742265152976,0.7701,1916.2,1916.0,5.2192]
[1742265153186,19.24922,1916.4,1916.0,5.2192]
[1742265153393,0.821813,1916.3,1916.0,5.2192]
[1742265153591,19.24922,1916.4,1916.0,5.2192]
[1742265154099,5.21841,1916.3,1916.0,5.2192]
[1742265155092,15.0687539,1916.3,1915.9,5.98133]
[1742265155295,15.0687539,1916.3,1915.8,5.21955]
[1742265155296,0.8251,1916.1,1915.8,5.21955]
[1742265156094,6.04406,1916.1,1915.7,5.21998]
[1742265156404,11.8021069,1916.1,1915.7,5.21984]
[1742265157064,11.8021069,1916.1,1915.6,10.21928]
[1742265157065,5.21922,1916.0,1915.6,10.21928]
[1742265157252,11.8021969,1916.1,1915.7,10.4399]
[1742265157455,10.6759139,1916.1,1915.7,10.4399]
[1742265157656,15.8951039,1916.1,1915.7,5.21989]
[1742265157851,5.21923,1916.0,1915.7,5.21989]
[1742265158279,5.21923,1916.0,1915.6,10.44037]
[1742265158483,3.0,1916.0,1915.7,10.43984]
[1742265158971,3.0,1916.0,1915.7,5.21985]
[1742265159597,8.2192,1916.0,1915.6,5.22027]
[1742265159802,5.21949,1915.9,1915.6,5.22027]
[1742265160004,0.8015,1915.8,1915.6,5.22027]
[1742265160307,0.8015,1915.8,1915.5,5.22055]
[1742265160474,6.02136,1915.8,1915.5,5.22055]
[1742265160673,12.82854139,1915.8,1915.4,5.22066]
[1742265160983,0.8026,1915.6,1915.2,5.22133]
[1742265161172,0.8026,1915.6,1915.3,5.22097]
[1742265162098,7.00992529,1915.8,1915.2,5.22138]
[1742265162286,3.7909,1915.8,1915.6,5.22028]
[1742265162486,0.7909,1915.8,1915.5,10.44083]
[1742265163070,0.7909,1915.8,1915.6,5.2202]
[1742265164719,3.0,1915.9,1915.6,5.22009]
[1742265165022,21.6823639,1916.0,1915.7,5.21993]
[1742265165185,24.67249529,1916.0,1915.7,5.21993]
[1742265165869,24.67249529,1916.0,1915.6,5.22009]
[1742265166073,18.65249529,1916.0,1915.6,5.22009]
[1742265166267,0.8114,1916.0,1915.8,5.21966]
[1742265166503,9.8505939,1916.2,1915.8,10.43926]
[1742265166805,15.6836839,1916.2,1915.8,10.43921]
[1742265167008,15.6836839,1916.2,1915.9,5.21944]
[1742265167173,18.07389629,1916.2,1915.9,5.21944]
[1742265167574,0.8331,1916.2,1915.7,0.7667]
[1742265167809,0.8331,1916.2,1916.0,5.2192]
[1742265168497,5.4648639,1916.2,1915.9,5.21942]
[1742265168805,10.6836139,1916.2,1915.9,5.21942]
[1742265169604,5.4648639,1916.2,1915.9,10.43875]
[1742265170595,5.4648639,1916.2,1915.9,5.21933]
[1742265170817,12.57383329,1916.2,1915.8,5.2196]
[1742265171000,5.21902,1916.1,1915.8,5.2196]
[1742265171579,0.7512,1916.0,1915.7,5.21999]
[1742265172007,0.7512,1916.0,1915.7,10.43989]
[1742265172216,0.7512,1916.0,1915.8,5.21974]
[1742265172375,5.9799859,1916.0,1915.6,5.22016]
[1742265172580,11.1993259,1916.0,1915.6,5.22016]
[1742265172801,11.1993259,1916.0,1915.6,10.4403]
[1742265173112,5.3829639,1916.0,1915.7,5.22002]
[1742265173304,0.7512,1916.0,1915.7,5.22002]
[1742265174503,5.97041,1916.0,1915.7,5.22002]
[1742265175027,0.7512,1916.0,1915.7,10.43993]
[1742265175232,12.51345329,1916.2,1915.6,5.22029]
[1742265175425,3.0,1916.1,1916.0,5.2192]
[1742265175599,3.0,1916.1,1915.9,5.21938]
[1742265176428,13.6233039,1916.2,1915.8,6.04143]
[1742265176734,9.8509739,1916.0,1915.7,5.21988]
[1742265176932,0.7503,1915.9,1915.6,10.44044]
[1742265177110,0.7503,1915.9,1915.6,5.22018]
[1742265177311,5.96982,1915.9,1915.5,10.44101]
[1742265177695,4.6317639,1915.8,1915.5,5.22048]
[1742265177904,10.91169229,1915.8,1915.4,5.22081]
[1742265178232,11.19059,1915.7,1915.3,5.22108]
[1742265178423,5.9704,1915.7,1915.3,10.44208]
[1742265178823,9.8522039,1915.6,1915.2,5.22136]
[1742265179018,9.8522039,1915.6,1915.3,5.22104]
[1742265180235,4.6317639,1915.6,1915.3,10.44201]
[1742265180438,0.7503,1915.7,1915.4,10.44138]
[1742265180634,0.7503,1915.7,1915.4,5.22065]
[1742265181312,0.7503,1915.7,1915.4,10.44133]
[1742265181737,0.7503,1915.7,1915.4,5.22065]
[1742265182237,5.97043,1915.7,1915.3,5.22106]
[1742265182435,11.19064,1915.7,1915.3,5.22106]
[1742265182634,5.97043,1915.7,1915.3,5.22106]
[1742265182802,5.22032,1915.6,1915.3,5.22106]
[1742265183009,9.8520839,1915.6,1915.3,5.22106]
[1742265183506,9.8520839,1915.6,1915.2,10.4426]
[1742265183705,9.8520839,1915.6,1915.3,5.22109]
[1742265183902,4.6317639,1915.6,1915.3,5.22109]
[1742265184120,7.65868623,1915.7,1915.4,5.22082]
[1742265184337,5.97043,1915.7,1915.4,5.22082]
[1742265185109,9.04806,1915.9,1915.5,5.22044]
[1742265185320,9.04806,1915.9,1915.5,10.44084]
[1742265186059,9.04806,1915.9,1915.5,10.44079]
[1742265186226,11.43796839,1915.9,1915.5,10.44079]
[1742265186427,11.43796839,1915.9,1915.5,5.22039]
[1742265187063,8.43796839,1915.9,1915.5,10.44087]
[1742265187257,0.8285,1915.9,1915.7,5.2199]
[1742265187554,0.8285,1916.0,1915.8,5.21975]
[1742265189453,0.8285,1916.0,1915.7,5.2199]
[1742265189752,0.8285,1916.0,1915.8,5.21949]
[1742265190321,0.8305,1916.1,1915.8,5.21949]
[1742265190527,4.6317639,1916.2,1915.9,5.21927]
[1742265191340,4.6317639,1916.2,1916.0,5.21919]
[1742265191543,4.6317639,1916.2,1915.9,5.21927]
[1742265191544,15.0694639,1916.2,1915.8,5.21959]
[1742265191745,0.8305,1916.1,1915.8,5.21959]
[1742265192622,0.8305,1916.1,1915.8,5.21957]
[1742265193260,0.8305,1916.1,1915.9,5.21938]
[1742265193479,19.4812639,1916.4,1916.0,10.43831]
[1742265193666,24.6994239,1916.4,1916.0,5.21911]
[1742265195002,4.6317639,1916.2,1915.9,5.21944]
[1742265195357,0.8121,1916.1,1915.7,5.21991]
[1742265195671,9.03118,1916.1,1915.7,5.21988]